fUST/lending_fUST_20251010
["ID","MTS","AMOUNT","RATE_DAILY","PERIOD"]
[390600926,1760101842302,-941.94,0.00016711,2]
[390600927,1760101842311,-941.94,0.00016711,2]
[390600928,1760101842320,-941.94,0.00016711,2]
[390600929,1760101842329,-941.94,0.00016711,2]
[390600930,1760101842338,-2664.9,0.00016711,2]
[390600931,1760101842347,-2664.9,0.00016711,2]
[390600932,1760101842356,-2664.9,0.00016711,2]
[390600933,1760101842366,-2664.9,0.00016711,2]
[390600934,1760101842375,-2664.9,0.00016711,2]
[390600935,1760101842384,-2664.9,0.00016711,2]
[390600936,1760101842393,-151.0,0.00016712,2]
[390600937,1760101842403,-151.0,0.00016712,2]
[390600938,1760101842412,-500.0,0.00016712,2]
[390600939,1760101842422,-500.0,0.00016712,2]
[390600940,1760101842436,-300.0,0.00016712,2]
[390600941,1760101842445,-300.0,0.00016712,2]
[390600942,1760101842454,-500.0,0.00016712,2]
[390600944,1760101842463,-500.0,0.00016712,2]
[390600946,1760101842473,-500.0,0.00016712,2]
[390600948,1760101842482,-500.0,0.00016712,2]
[390600949,1760101842492,-500.0,0.00016712,2]
[390600950,1760101842506,-500.0,0.00016712,2]
[390600952,1760101842518,-1333.52,0.00016712,2]
[390600953,1760101842527,-500.0,0.00016712,2]
[390600954,1760101842537,-500.0,0.00016712,2]
[390600955,1760101842546,-500.0,0.00016712,2]
[390600956,1760101842555,-503.894047,0.00016712,2]
[390600957,1760101842564,-567.2,0.00016712,2]
[390600958,1760101842574,-502.14007265,0.00016712,2]
[390600959,1760101842582,-500.0,0.00016712,2]
[390600960,1760101842591,-500.0,0.00016712,2]
[390600961,1760101842601,-500.0,0.00016712,2]
[390600962,1760101842611,-500.0,0.00016712,2]
[390600964,1760101842620,-500.0,0.00016712,2]
[390600966,1760101842629,-500.0,0.00016712,2]
[390600968,1760101842638,-500.0,0.00016712,2]
[390600970,1760101842647,-500.0,0.00016712,2]
[390600972,1760101842656,-500.0,0.00016712,2]
[390600974,1760101842665,-500.0,0.00016712,2]
[390600975,1760101842674,-500.0,0.00016712,2]
[390600976,1760101842683,-500.0,0.00016712,2]
[390600977,1760101842693,-500.0,0.00016712,2]
[390600979,1760101842702,-327.42,0.00016712,2]
[390600981,1760101842711,-500.0,0.00016712,2]
[390600983,1760101842721,-357.9,0.00016712,2]
[390600984,1760101842730,-500.0,0.00016712,2]
[390600985,1760101842739,-158.02294604,0.00016712,2]
[390600986,1760101842748,-500.0,0.00016712,2]
[390600987,1760101842757,-500.0,0.00016712,2]
[390600988,1760101842767,-500.0,0.00016712,2]
[390600989,1760101842776,-500.0,0.00016712,2]
[390600990,1760101842785,-500.0,0.00016712,2]
[390600991,1760101842798,-186.26815036,0.00016712,2]
[390600992,1760101842809,-602.77,0.00016712,2]
[390600994,1760101842818,-500.0,0.00016712,2]
[390600995,1760101842828,-701.17,0.00016712,2]
[390600996,1760101842837,-500.0,0.00016712,2]
[390600997,1760101842847,-500.0,0.00016712,2]
[390600998,1760101842857,-622.32115347,0.00016712,2]
[390600999,1760101842866,-500.0,0.00016712,2]
[390601000,1760101842875,-500.0,0.00016712,2]
[390601001,1760101842885,-500.0,0.00016712,2]
[390601002,1760101842894,-500.0,0.00016712,2]
[390601003,1760101842904,-500.0,0.00016712,2]
[390601004,1760101842914,-500.0,0.00016712,2]
[390601005,1760101842923,-597.8,0.00016712,2]
[390601006,1760101842932,-500.0,0.00016712,2]
[390601007,1760101842942,-500.0,0.00016712,2]
[390601008,1760101842951,-500.0,0.00016712,2]
[390601009,1760101842961,-500.0,0.00016712,2]
[390601010,1760101842970,-161.80879077,0.00016712,2]
[390601011,1760101842979,-500.0,0.00016712,2]
[390601012,1760101842989,-487.17684428,0.00016712,2]
[390601013,1760101842998,-500.0,0.00016712,2]
[390601014,1760101843007,-500.0,0.00016712,2]
[390601015,1760101843017,-1141.37,0.00016712,2]
[390601016,1760101843026,-500.0,0.00016712,2]
[390601017,1760101843036,-676.23,0.00016712,2]
[390601018,1760101843045,-500.0,0.00016712,2]
[390601019,1760101843054,-771.93,0.00016712,2]
[390601020,1760101843064,-517.15310094,0.00016712,2]
[390601021,1760101843073,-500.0,0.00016712,2]
[390601022,1760101843083,-513.30909316,0.00016712,2]
[390601023,1760101843093,-500.0,0.00016712,2]
[390601024,1760101843103,-500.0,0.00016712,2]
[390601025,1760101843113,-500.0,0.00016712,2]
[390601026,1760101843123,-298.8,0.00016712,2]
[390601027,1760101843267,-500.0,0.00016712,2]
[390601028,1760101843298,-500.0,0.00016712,2]
[390601029,1760101843308,-500.0,0.00016712,2]
[390601030,1760101843317,-387.4,0.00016712,2]
[390601031,1760101843327,-196.68,0.00016712,2]
[390601032,1760101843337,-500.0,0.00016712,2]
[390601033,1760101843346,-649.85617838,0.00016712,2]
[390601034,1760101843356,-575.67,0.00016712,2]
[390601035,1760101843365,-500.0,0.00016712,2]
[390601036,1760101843374,-500.0,0.00016712,2]
[390601037,1760101843384,-390.71,0.00016712,2]
[390601038,1760101843393,-500.0,0.00016712,2]
[390601039,1760101843403,-500.0,0.00016712,2]
[390601040,1760101843412,-497.5791446,0.00016712,2]
[390601041,1760101843421,-1115.81,0.00016712,2]
[390601042,1760101843434,-500.0,0.00016712,2]
[390601043,1760101843444,-500.0,0.00016712,2]
[390601044,1760101843453,-569.60990512,0.00016712,2]
[390601045,1760101843462,-500.0,0.00016712,2]
[390601046,1760101843472,-151.0,0.00016712,2]
[390601047,1760101843481,-500.0,0.00016712,2]
[390601048,1760101843490,-1241.99,0.00016712,2]
[390601049,1760101843499,-942.0,0.00016712,2]
[390601050,1760101843509,-151.0,0.00016712,2]
[390601051,1760101843518,-500.0,0.00016712,2]
[390601052,1760101843527,-151.0,0.00016712,2]
[390601053,1760101843537,-4732.41,0.00016712,2]
[390601054,1760101843546,-500.0,0.00016712,2]
[390601055,1760101843556,-359.82968162,0.00016712,2]
[390601056,1760101843565,-500.0,0.00016712,2]
[390601057,1760101843574,-526.61,0.00016712,2]
[390601058,1760101843583,-500.0,0.00016712,2]
[390601059,1760101843592,-500.0,0.00016712,2]
[390601060,1760101843603,-500.0,0.00016712,2]
[390601061,1760101843613,-500.0,0.00016712,2]
[390601062,1760101843622,-500.0,0.00016712,2]
[390601063,1760101843632,-500.0,0.00016712,2]
[390601064,1760101843641,-500.0,0.00016712,2]
[390601065,1760101843651,-785.88,0.00016712,2]
[390601066,1760101843660,-500.0,0.00016712,2]
[390601067,1760101843669,-617.27,0.00016712,2]
[390601068,1760101843679,-500.0,0.00016712,2]
[390601069,1760101843688,-500.0,0.00016712,2]
[390601070,1760101843698,-500.0,0.00016712,2]
[390601071,1760101843707,-1623.93,0.00016712,2]
[390601072,1760101843717,-500.0,0.00016712,2]
[390601073,1760101843726,-1499.8,0.00016712,2]
[390601074,1760101843735,-500.0,0.00016712,2]
[390601075,1760101843745,-500.0,0.00016712,2]
[390601076,1760101843754,-500.0,0.00016712,2]
[390601077,1760101843763,-364.67410024,0.00016712,2]
[390601078,1760101843773,-500.0,0.00016712,2]
[390601079,1760101843782,-2149.34,0.00016712,2]
[390601080,1760101843792,-500.0,0.00016712,2]
[390601081,1760101843801,-500.0,0.00016712,2]
[390601082,1760101843810,-4543.44,0.00016712,2]
[390601083,1760101843819,-620.98,0.00016712,2]
[390601084,1760101843828,-500.0,0.00016712,2]
[390601085,1760101843837,-500.0,0.00016712,2]
[390601086,1760101843846,-500.0,0.00016712,2]
[390601087,1760101843856,-500.0,0.00016712,2]
[390601088,1760101843866,-500.0,0.00016712,2]
[390601089,1760101843875,-1015.27,0.00016712,2]
[390601090,1760101843884,-610.21,0.00016712,2]
[390601091,1760101843894,-607.2,0.00016712,2]
[390601092,1760101843904,-605.98,0.00016712,2]
[390601093,1760101843913,-502.18,0.00016712,2]
[390601094,1760101843923,-963.28,0.00016712,2]
[390601095,1760101843933,-500.0,0.00016712,2]
[390601096,1760101843942,-500.0,0.00016712,2]
[390601097,1760101843951,-500.0,0.00016712,2]
[390601098,1760101843961,-5962.37,0.00016712,2]
[390601099,1760101843970,-623.9,0.00016712,2]
[390601100,1760101843980,-500.0,0.00016712,2]
[390601101,1760101843989,-500.0,0.00016712,2]
[390601102,1760101843999,-500.0,0.00016712,2]
[390601103,1760101844008,-500.0,0.00016712,2]
[390601104,1760101844018,-1758.04,0.00016712,2]
[390601105,1760101844028,-500.0,0.00016712,2]
[390601106,1760101844038,-876.34,0.00016712,2]
[390601107,1760101844048,-517.32184556,0.00016712,2]
[390601108,1760101844057,-500.0,0.00016712,2]
[390601109,1760101844067,-590.43,0.00016712,2]
[390601110,1760101844077,-500.0,0.00016712,2]
[390601111,1760101844087,-3645.93,0.00016712,2]
[390601112,1760101844096,-828.89,0.00016712,2]
[390601113,1760101844106,-664.61,0.00016712,2]
[390601114,1760101844116,-2593.3,0.00016712,2]
[390601115,1760101844126,-500.0,0.00016712,2]
[390601116,1760101844137,-500.0,0.00016712,2]
[390601117,1760101844149,-2867.32,0.00016712,2]
[390601118,1760101844158,-500.0,0.00016712,2]
[390601119,1760101844168,-263.01007222,0.00016712,2]
[390601120,1760101844178,-500.0,0.00016712,2]
[390601121,1760101844188,-500.0,0.00016712,2]
[390601122,1760101844198,-500.0,0.00016712,2]
[390601123,1760101844208,-399.42424431,0.00016712,2]
[390601124,1760101844218,-500.0,0.00016712,2]
[390601125,1760101844228,-1691.32,0.00016712,2]
[390601126,1760101844237,-258.51698207,0.00016712,2]
[390601127,1760101844247,-319.03155097,0.00016712,2]
[390601128,1760101844256,-658.5,0.00016712,2]
[390601129,1760101844266,-389.95574784,0.00016712,2]
[390601130,1760101844276,-1036.19,0.00016712,2]
[390601131,1760101844286,-500.0,0.00016712,2]
[390601132,1760101844296,-366.11509416,0.00016712,2]
[390601133,1760101844305,-653.65,0.00016712,2]
[390601134,1760101844315,-158.25077607,0.00016712,2]
[390601135,1760101844324,-500.0,0.00016712,2]
[390601136,1760101844338,-500.0,0.00016712,2]
[390601137,1760101844347,-500.0,0.00016712,2]
[390601138,1760101844357,-500.0,0.00016712,2]
[390601139,1760101844366,-500.0,0.00016712,2]
[390601140,1760101844376,-1340.65,0.00016712,2]
[390601141,1760101844385,-500.0,0.00016712,2]
[390601142,1760101844395,-1769.43,0.00016712,2]
[390601143,1760101844404,-500.0,0.00016712,2]
[390601144,1760101844413,-500.0,0.00016712,2]
[390601145,1760101844422,-417.22,0.00016712,2]
[390601146,1760101844432,-720.9,0.00016712,2]
[390601147,1760101844445,-504.74424792,0.00016712,2]
[390601148,1760101844454,-500.0,0.00016712,2]
[390601149,1760101844464,-500.0,0.00016712,2]
[390601150,1760101844473,-500.0,0.00016712,2]
[390601151,1760101844485,-500.0,0.00016712,2]
[390601152,1760101844498,-637.06,0.00016712,2]
[390601153,1760101844508,-1916.59,0.00016712,2]
[390601154,1760101844519,-500.0,0.00016712,2]
[390601155,1760101844529,-500.0,0.00016712,2]
[390601156,1760101844538,-669.81,0.00016712,2]
[390601157,1760101844548,-2464.24,0.00016712,2]
[390601158,1760101844557,-800.32,0.00016712,2]
[390601159,1760101844567,-500.0,0.00016712,2]
[390601160,1760101844576,-632.48025918,0.00016712,2]
[390601161,1760101844586,-500.0,0.00016712,2]
[390601162,1760101844595,-500.0,0.00016712,2]
[390601163,1760101844604,-500.0,0.00016712,2]
[390601164,1760101844614,-618.56,0.00016712,2]
[390601165,1760101844623,-752.93,0.00016712,2]
[390601166,1760101844632,-500.0,0.00016712,2]
[390601167,1760101844642,-811.6,0.00016712,2]
[390601168,1760101844651,-825.33,0.00016712,2]
[390601169,1760101844660,-500.0,0.00016712,2]
[390601170,1760101844670,-560.25,0.00016712,2]
[390601171,1760101844679,-754.04,0.00016712,2]
[390601172,1760101844688,-500.0,0.00016712,2]
[390601173,1760101844697,-525.73,0.00016712,2]
[390601174,1760101844706,-500.0,0.00016712,2]
[390601175,1760101844715,-500.0,0.00016712,2]
[390601176,1760101844725,-500.0,0.00016712,2]
[390601177,1760101844734,-517.73,0.00016712,2]
[390601178,1760101844743,-500.0,0.00016712,2]
[390601179,1760101844753,-1238.36,0.00016712,2]
[390601180,1760101844762,-1568.64,0.00016712,2]
[390601181,1760101844771,-500.0,0.00016712,2]
[390601182,1760101844780,-1037.68018076,0.00016749,2]
[390601183,1760101844789,-300.0,0.00016766,2]
[390601184,1760101844798,-300.0,0.00016766,2]
[390601185,1760101844808,-300.0,0.00016766,2]
[390601186,1760101844817,-300.0,0.00016766,2]
[390601187,1760101844827,-300.0,0.00016766,2]
[390601188,1760101844837,-300.0,0.00016766,2]
[390601189,1760101844847,-300.0,0.00016766,2]
[390601190,1760101844856,-300.0,0.00016766,2]
[390601191,1760101844865,-300.0,0.00016766,2]
[390601192,1760101844875,-300.0,0.00016766,2]
[390601193,1760101844884,-300.0,0.00016766,2]
[390601194,1760101844893,-300.0,0.00016766,2]
[390601195,1760101844903,-300.0,0.00016766,2]
[390601196,1760101844912,-300.0,0.00016766,2]
[390601197,1760101844922,-300.0,0.00016766,2]
[390601198,1760101844931,-600.0,0.00016766,2]
[390601199,1760101844940,-151.0,0.00016767,2]
[390601200,1760101844949,-153.63453505,0.00016767,2]
[390601201,1760101844958,-151.0,0.00016767,2]
[390601202,1760101844967,-942.0,0.00016767,2]
[390601203,1760101844977,-151.0,0.00016767,2]
[390601204,1760101844987,-151.0,0.00016767,2]
[390601205,1760101844997,-372.10225396,0.00016773,2]
[390601206,1760101845006,-642.55581265,0.00016773,2]
[390601207,1760101845015,-500.0,0.00016773,2]
[390601208,1760101845024,-500.0,0.00016773,2]
[390601209,1760101845034,-500.53836085,0.00016773,2]
[390601210,1760101845043,-500.0,0.00016773,2]
[390601211,1760101845052,-500.0,0.00016773,2]
[390601212,1760101845061,-500.0,0.00016773,2]
[390601213,1760101845073,-500.0,0.00016773,2]
[390601214,1760101845083,-500.0,0.00016773,2]
[390601215,1760101845092,-500.0,0.00016773,2]
[390601216,1760101845102,-500.0,0.00016773,2]
[390601217,1760101845111,-500.0,0.00016773,2]
[390601218,1760101845120,-500.86991837,0.00016773,2]
[390601219,1760101845130,-500.0,0.00016773,2]
[390601220,1760101845139,-500.0,0.00016773,2]
[390601221,1760101845148,-500.0,0.00016773,2]
[390601222,1760101845158,-500.0,0.00016773,2]
[390601223,1760101845167,-500.0,0.00016773,2]
[390601224,1760101845176,-500.0,0.00016773,2]
[390601225,1760101845185,-500.0,0.00016773,2]
[390601226,1760101845195,-500.0,0.00016773,2]
[390601227,1760101845204,-157.30324439,0.00016773,2]
[390601228,1760101845213,-500.0,0.00016773,2]
[390601229,1760101845223,-500.0,0.00016773,2]
[390601230,1760101845233,-500.0,0.00016773,2]
[390601231,1760101845243,-500.0,0.00016773,2]
[390601232,1760101845252,-161.86847584,0.00016773,2]
[390601233,1760101845262,-500.0,0.00016773,2]
[390601234,1760101845272,-159.37404458,0.00016821,2]
[390601235,1760101845281,-151.0,0.00016822,2]
[390601236,1760101845291,-942.0,0.00016822,2]
[390601237,1760101845300,-198.0,0.00016822,2]
[390601238,1760101845309,-198.0,0.00016822,2]
[390601239,1760101845318,-941.94,0.00016858,2]
[390601240,1760101845328,-1041.66666667,0.00016866,2]
[390601241,1760101845337,-160.0,0.00016866,2]
[390601242,1760101845346,-234.32063665,0.00016866,2]
[390601243,1760101845357,-417.15472785,0.00016866,2]
[390601244,1760101845366,-160.0,0.00016866,2]
[390601245,1760101845375,-298.03512572,0.00016866,2]
[390601246,1760101845384,-393.31905473,0.00016874,2]
[390601247,1760101845393,-152.89660167,0.00016876,2]
[390601249,1760101845403,-942.0,0.00016876,2]
[390601250,1760101845412,-2664.9,0.00016884,2]
[390601251,1760101845421,-941.94,0.00016885,2]
[390601252,1760101845431,-172.65316788,0.000169,2]
[390601253,1760101845445,-942.0,0.00016931,2]
[390601254,1760101845454,-1037.68018076,0.00016955,2]
[390601255,1760101845463,-941.94,0.00016984,2]
[390601256,1760101845472,-2664.9,0.00016984,2]
[390601257,1760101845482,-941.94,0.00016985,2]
[390601258,1760101845491,-941.94,0.00016985,2]
[390601259,1760101845500,-941.94,0.00016985,2]
[390601260,1760101845510,-941.94,0.00016985,2]
[390601261,1760101845519,-942.16636747,0.00016985,2]
[390601262,1760101845528,-2664.9,0.00016985,2]
[390601263,1760101845537,-2664.9,0.00016985,2]
[390601264,1760101845546,-2664.9,0.00016985,2]
[390601265,1760101845555,-2664.9,0.00016985,2]
[390601267,1760101845565,-2665.13166338,0.00016985,2]
[390601268,1760101845575,-942.0,0.00016986,2]
[390601270,1760101845625,-500.0,0.00016986,2]
[390601272,1760101845634,-500.0,0.00016986,2]
[390601274,1760101845643,-500.0,0.00016986,2]
[390601275,1760101845651,-500.0,0.00016986,2]
[390601276,1760101845660,-379.08096042,0.00016986,2]
[390601277,1760101845669,-172.91,0.00016986,2]
[390601278,1760101845678,-500.0,0.00016986,2]
[390601279,1760101845688,-1333.52,0.00016986,2]
[390601280,1760101845697,-238.15149743,0.00016986,2]
[390601281,1760101845706,-500.0,0.00016986,2]
[390601282,1760101845715,-567.2,0.00016986,2]
[390601283,1760101845724,-500.0,0.00016986,2]
[390601285,1760101845733,-515.55014223,0.00016986,2]
[390601287,1760101845743,-500.0,0.00016986,2]
[390601288,1760101845752,-500.0,0.00016986,2]
[390601289,1760101845762,-643.37352129,0.00016986,2]
[390601290,1760101845771,-500.0,0.00016986,2]
[390601291,1760101845780,-500.0,0.00016986,2]
[390601292,1760101845790,-500.0,0.00016986,2]
[390601293,1760101845799,-367.22,0.00016986,2]
[390601294,1760101845808,-500.0,0.00016986,2]
[390601295,1760101845818,-500.0,0.00016986,2]
[390601296,1760101845827,-500.0,0.00016986,2]
[390601297,1760101845836,-500.0,0.00016986,2]
[390601298,1760101845846,-500.0,0.00016986,2]
[390601299,1760101845856,-500.0,0.00016986,2]
[390601300,1760101845866,-165.22018724,0.00016986,2]
[390601301,1760101845876,-500.0,0.00016986,2]
[390601302,1760101845887,-701.17,0.00016986,2]
[390601303,1760101845896,-500.0,0.00016986,2]
[390601304,1760101845905,-500.0,0.00016986,2]
[390601305,1760101845914,-500.0,0.00016986,2]
[390601306,1760101845924,-500.0,0.00016986,2]
[390601307,1760101845933,-500.0,0.00016986,2]
[390601308,1760101845943,-396.84145666,0.00016986,2]
[390601309,1760101845952,-597.8,0.00016986,2]
[390601310,1760101845962,-500.0,0.00016986,2]
[390601311,1760101845972,-500.0,0.00016986,2]
[390601312,1760101845981,-500.0,0.00016986,2]
[390601313,1760101845990,-313.55483031,0.00016986,2]
[390601314,1760101846000,-388.20556787,0.00016986,2]
[390601315,1760101846009,-1141.37,0.00016986,2]
[390601316,1760101846019,-500.0,0.00016986,2]
[390601317,1760101846028,-676.23,0.00016986,2]
[390601318,1760101846037,-500.0,0.00016986,2]
[390601319,1760101846047,-771.93,0.00016986,2]
[390601320,1760101846056,-504.79543064,0.00016986,2]
[390601321,1760101846066,-500.0,0.00016986,2]
[390601322,1760101846075,-500.0,0.00016986,2]
[390601323,1760101846085,-500.0,0.00016986,2]
[390601324,1760101846095,-500.0,0.00016986,2]
[390601325,1760101846106,-500.0,0.00016986,2]
[390601326,1760101846115,-500.00000001,0.00016986,2]
[390601327,1760101846124,-179.8,0.00016986,2]
[390601328,1760101846134,-346.78162768,0.00016986,2]
[390601329,1760101846144,-395.01,0.00016986,2]
[390601330,1760101846154,-500.0,0.00016986,2]
[390601331,1760101846164,-1115.81,0.00016986,2]
[390601332,1760101846173,-500.0,0.00016986,2]
[390601333,1760101846183,-500.0,0.00016986,2]
[390601334,1760101846194,-500.0,0.00016986,2]
[390601335,1760101846204,-500.0,0.00016986,2]
[390601336,1760101846213,-1241.99,0.00016986,2]
[390601337,1760101846223,-4732.41,0.00016986,2]
[390601338,1760101846233,-500.0,0.00016986,2]
[390601339,1760101846242,-500.0,0.00016986,2]
[390601340,1760101846251,-500.0,0.00016986,2]
[390601341,1760101846260,-500.0,0.00016986,2]
[390601342,1760101846270,-500.0,0.00016986,2]
[390601343,1760101846279,-500.0,0.00016986,2]
[390601344,1760101846289,-500.0,0.00016986,2]
[390601345,1760101846298,-500.0,0.00016986,2]
[390601346,1760101846307,-785.88,0.00016986,2]
[390601347,1760101846317,-500.0,0.00016986,2]
[390601348,1760101846326,-617.27,0.00016986,2]
[390601349,1760101846335,-500.0,0.00016986,2]
[390601350,1760101846344,-500.0,0.00016986,2]
[390601351,1760101846353,-1623.93,0.00016986,2]
[390601352,1760101846363,-500.0,0.00016986,2]
[390601353,1760101846372,-1499.8,0.00016986,2]
[390601354,1760101846381,-500.0,0.00016986,2]
[390601355,1760101846390,-500.0,0.00016986,2]
[390601356,1760101846399,-500.0,0.00016986,2]
[390601357,1760101846408,-500.0,0.00016986,2]
[390601359,1760101846418,-2149.34,0.00016986,2]
[390601361,1760101846427,-500.0,0.00016986,2]
[390601363,1760101846438,-500.0,0.00016986,2]
[390601364,1760101846449,-4543.44,0.00016986,2]
[390601365,1760101846459,-620.98,0.00016986,2]
[390601366,1760101846468,-500.0,0.00016986,2]
[390601367,1760101846479,-500.41532337,0.00016986,2]
[390601368,1760101846488,-500.0,0.00016986,2]
[390601369,1760101846497,-500.0,0.00016986,2]
[390601370,1760101846506,-610.21,0.00016986,2]
[390601371,1760101846516,-1015.27,0.00016986,2]
[390601372,1760101846525,-607.2,0.00016986,2]
[390601373,1760101846535,-605.98,0.00016986,2]
[390601375,1760101846544,-502.18,0.00016986,2]
[390601376,1760101846554,-963.28,0.00016986,2]
[390601377,1760101846563,-500.0,0.00016986,2]
[390601378,1760101846572,-500.0,0.00016986,2]
[390601379,1760101846581,-5962.37,0.00016986,2]
[390601380,1760101846590,-623.9,0.00016986,2]
[390601382,1760101846600,-500.0,0.00016986,2]
[390601384,1760101846609,-501.09545884,0.00016986,2]
[390601385,1760101846618,-581.56691764,0.00016986,2]
[390601386,1760101846627,-1758.04,0.00016986,2]
[390601387,1760101846637,-500.0,0.00016986,2]
[390601388,1760101846647,-876.34,0.00016986,2]
[390601389,1760101846656,-590.43,0.00016986,2]
[390601390,1760101846665,-500.0,0.00016986,2]
[390601391,1760101846674,-3645.93,0.00016986,2]
[390601392,1760101846683,-828.89,0.00016986,2]
[390601393,1760101846692,-664.61,0.00016986,2]
[390601394,1760101846702,-2593.3,0.00016986,2]
[390601395,1760101846711,-2867.32,0.00016986,2]
[390601396,1760101846721,-500.0,0.00016986,2]
[390601397,1760101846730,-500.0,0.00016986,2]
[390601398,1760101846739,-500.0,0.00016986,2]
[390601399,1760101846749,-500.0,0.00016986,2]
[390601400,1760101846758,-500.0,0.00016986,2]
[390601401,1760101846768,-1691.32,0.00016986,2]
[390601402,1760101846777,-658.5,0.00016986,2]
[390601403,1760101846786,-1036.19,0.00016986,2]
[390601404,1760101846795,-500.0,0.00016986,2]
[390601405,1760101846805,-653.65,0.00016986,2]
[390601406,1760101846815,-500.0,0.00016986,2]
[390601407,1760101846824,-500.0,0.00016986,2]
[390601408,1760101846833,-500.0,0.00016986,2]
[390601409,1760101846843,-500.0,0.00016986,2]
[390601410,1760101846852,-1340.65,0.00016986,2]
[390601411,1760101846863,-636.12,0.00016986,2]
[390601412,1760101846873,-1769.43,0.00016986,2]
[390601413,1760101846883,-500.0,0.00016986,2]
[390601414,1760101846892,-500.0,0.00016986,2]
[390601415,1760101846902,-720.9,0.00016986,2]
[390601416,1760101846911,-518.74,0.00016986,2]
[390601417,1760101846920,-500.0,0.00016986,2]
[390601418,1760101846929,-500.0,0.00016986,2]
[390601419,1760101846938,-500.0,0.00016986,2]
[390601420,1760101846947,-637.06,0.00016986,2]
[390601421,1760101846956,-1916.59,0.00016986,2]
[390601422,1760101846966,-500.0,0.00016986,2]
[390601423,1760101846976,-669.81,0.00016986,2]
[390601424,1760101846986,-2464.24,0.00016986,2]
[390601425,1760101846996,-151.0,0.00016986,2]
[390601426,1760101847006,-800.32,0.00016986,2]
[390601427,1760101847015,-151.0,0.00016986,2]
[390601428,1760101847024,-151.0,0.00016986,2]
[390601429,1760101847035,-177.607044,0.00016986,2]
[390601430,1760101847044,-286.06710445,0.00016986,2]
[390601431,1760101847054,-151.0,0.00016986,2]
[390601432,1760101847063,-151.321248,0.00016986,2]
[390601433,1760101847073,-177.607044,0.00016986,2]
[390601434,1760101847083,-177.607044,0.00016986,2]
[390601435,1760101847093,-177.607044,0.00016986,2]
[390601436,1760101847103,-151.0,0.00016986,2]
[390601437,1760101847112,-500.0,0.00016986,2]
[390601438,1760101847122,-151.0,0.00016986,2]
[390601439,1760101847131,-151.0,0.00016986,2]
[390601440,1760101847141,-500.0,0.00016986,2]
[390601441,1760101847151,-500.0,0.00016986,2]
[390601442,1760101847160,-618.56,0.00016986,2]
[390601443,1760101847169,-752.93,0.00016986,2]
[390601444,1760101847179,-215.65387175,0.00016986,2]
[390601445,1760101847189,-811.6,0.00016986,2]
[390601446,1760101847198,-825.33,0.00016986,2]
[390601447,1760101847207,-553.4796337,0.00016986,2]
[390601448,1760101847216,-560.25,0.00016986,2]
[390601449,1760101847226,-754.04,0.00016986,2]
[390601450,1760101847235,-151.506493,0.00016986,2]
[390601451,1760101847245,-153.062202,0.00016986,2]
[390601452,1760101847254,-164.290987,0.00016986,2]